fUSD/lending_fUSD_20240505
["ID","MTS","AMOUNT","RATE_DAILY","PERIOD"]
[326451767,1714927845788,-150.0,0.0003075,2]
[326451768,1714927845798,-150.0,0.00030752,2]
[326451769,1714927845808,-150.0,0.00030753,2]
[326451770,1714927845818,-150.0,0.00030755,2]
[326451771,1714927845828,-150.0,0.00030756,2]
[326451772,1714927845838,-150.0,0.00030758,2]
[326451773,1714927845848,-150.0,0.00030762,2]
[326451774,1714927845859,-150.0,0.00030767,2]
[326451775,1714927845869,-150.0,0.00030773,2]
[326451776,1714927845878,-150.0,0.00030778,2]
[326451777,1714927845889,-150.0,0.00030779,2]
[326451778,1714927845898,-150.0,0.0003078,2]
[326451779,1714927845908,-150.0,0.00030786,2]
[326451780,1714927845919,-150.0,0.00030797,2]
[326451781,1714927845929,-150.0,0.00030806,2]
[326451782,1714927845941,-150.0,0.00030806,2]
[326451783,1714927845950,-150.0,0.00030807,2]
[326451784,1714927845962,-150.0,0.00030809,2]
[326451785,1714927845972,-150.0,0.00030817,2]
[326451786,1714927845982,-150.0,0.00030817,2]
[326451787,1714927845993,-150.0,0.00030819,2]
[326451788,1714927846002,-150.0,0.00030823,2]
[326451789,1714927846012,-150.0,0.00030825,2]
[326451790,1714927846022,-150.0,0.00030827,2]
[326451791,1714927846032,-150.0,0.00030828,2]
[326451792,1714927846042,-150.0,0.00030829,2]
[326451793,1714927846052,-150.0,0.00030835,2]
[326451794,1714927846062,-150.0,0.00030839,2]
[326451795,1714927846072,-150.0,0.00030849,2]
[326451796,1714927846082,-150.0,0.00030849,2]
[326451797,1714927846092,-150.0,0.00030852,2]
[326451798,1714927846103,-150.0,0.00030861,2]
[326451799,1714927846114,-150.0,0.00030862,2]
[326451800,1714927846123,-150.0,0.00030863,2]
[326451801,1714927846133,-150.0,0.00030867,2]
[326451802,1714927846143,-150.0,0.00030869,2]
[326451803,1714927846153,-150.0,0.00030873,2]
[326451804,1714927846162,-150.0,0.00030875,2]
[326451805,1714927846172,-150.0,0.00030885,2]
[326451806,1714927846182,-150.0,0.00030888,2]
[326451807,1714927846194,-150.0,0.00030889,2]
[326451808,1714927846204,-150.0,0.00030889,2]
[326451809,1714927846214,-150.0,0.0003089,2]
[326451810,1714927846224,-369634.00318879,0.000309,7]
[326451811,1714927846237,-2000.0,0.000309,2]
[326451812,1714927846247,-2000.0,0.000309,2]
[326451814,1714927846257,-151.0,0.000309,7]
[326451815,1714927846267,-500.0,0.000309,7]
[326451816,1714927846279,-500.0,0.000309,7]
[326451817,1714927846288,-1819.1776702,0.00030906,2]
[326451819,1714927846299,-1185.759494,0.00030906,2]
[326451821,1714927846309,-13490.4613176,0.00030906,2]
[326451822,1714927846323,-16005.5378913,0.00030927,2]
[326451823,1714927846334,-792.6870596,0.00030927,2]
[326451824,1714927846346,-151.0,0.0003097,2]
[326451825,1714927846357,-151.0,0.0003097,2]
[326451826,1714927846369,-151.0,0.0003097,2]
[326451827,1714927846379,-151.0,0.0003097,2]
[326451828,1714927846389,-151.0,0.0003097,2]
[326451829,1714927846400,-151.0,0.0003097,2]
[326451830,1714927846410,-151.0,0.0003097,2]
[326451831,1714927846419,-151.0,0.0003097,2]
[326451832,1714927846429,-151.0,0.0003097,2]
[326451833,1714927846439,-151.0,0.0003097,2]
[326451834,1714927846448,-151.0,0.0003097,2]
[326451835,1714927846458,-151.0,0.0003097,2]
[326451836,1714927846468,-151.0,0.0003097,2]
[326451837,1714927846479,-1734.81,0.00030979,2]
[326451838,1714927846489,-1734.81,0.00030979,2]
[326451839,1714927846500,-1734.81,0.00030979,2]
[326451840,1714927846511,-1734.81,0.00030979,2]
[326451841,1714927846521,-1734.81,0.00030979,2]
[326451842,1714927846533,-1734.81,0.00030979,2]
[326451843,1714927846543,-1734.81,0.00030979,2]
[326451844,1714927846553,-1734.9646282,0.00030979,2]
[326451845,1714927846563,-797.74,0.00030979,2]
[326451846,1714927846574,-797.74,0.00030979,2]
[326451847,1714927846585,-797.74,0.00030979,2]
[326451848,1714927846856,-797.74,0.00030979,2]
[326451849,1714927846889,-797.74,0.00030979,2]
[326451850,1714927846899,-797.74,0.00030979,2]
[326451851,1714927846909,-797.74,0.00030979,2]
[326451852,1714927846918,-797.74,0.00030979,2]
[326451853,1714927846928,-797.87506511,0.00030979,2]
[326451854,1714927846938,-2083.32821358,0.0003098,3]
[326451855,1714927846948,-175635.76714467,0.0003098,2]
[326451856,1714927846978,-108624.53201388,0.0003098,2]
[326451857,1714927847036,-925.86,0.0003098,2]
[326451858,1714927847092,-6214.90870001,0.0003098,2]
[326451859,1714927848378,-408.25452,0.00030137,2]
[326451860,1714927848401,-6.27548,0.00030137,2]
[326451861,1714927848412,-150.0,0.00030566,2]
[326451862,1714927848421,-150.0,0.00030576,2]
[326451863,1714927848430,-150.0,0.00030582,2]
[326451864,1714927848441,-150.0,0.00030582,2]
[326451865,1714927848450,-150.0,0.00030599,2]
[326451866,1714927848460,-59.2962496,0.00030612,2]
[326451867,1714927848485,-90.7037504,0.00030612,2]
[326451868,1714927848495,-524.4986591,0.00030619,4]
[326451869,1714927848505,-171.0076605,0.00030619,4]
[326451870,1714927848519,-618.9,0.00030619,4]
[326451871,1714927848535,-46.32369137,0.00030619,4]
[326451872,1714927848544,-178.14155541,0.00030619,4]
[326451873,1714927848553,-150.0,0.00030625,2]
[326451874,1714927848563,-150.0,0.00030629,2]
[326451875,1714927848572,-150.0,0.00030638,2]
[326451876,1714927848581,-150.0,0.00030656,2]
[326451877,1714927848592,-150.0,0.00030659,2]
[326451878,1714927848602,-150.0,0.00030667,2]
[326451879,1714927848612,-150.0,0.00030695,2]
[326451880,1714927848622,-150.0,0.00030695,2]
[326451881,1714927848632,-150.0,0.00030711,2]
[326451882,1714927848641,-150.0,0.00030718,2]
[326451883,1714927848651,-150.0,0.0003073,2]
[326451884,1714927848660,-150.0,0.00030736,2]
[326451885,1714927848670,-150.0,0.00030767,2]
[326451886,1714927848680,-150.0,0.00030773,2]
[326451887,1714927848690,-150.0,0.00030779,2]
[326451888,1714927848699,-150.0,0.00030781,2]
[326451889,1714927848708,-150.0,0.00030788,2]
[326451890,1714927848718,-150.0,0.00030813,2]
[326451891,1714927848728,-150.0,0.00030818,2]
[326451892,1714927848738,-150.0,0.00030827,2]
[326451893,1714927848747,-150.0,0.00030829,2]
[326451894,1714927848757,-150.0,0.00030842,2]
[326451895,1714927848767,-150.0,0.00030856,2]
[326451896,1714927848777,-150.0,0.00030873,2]
[326451897,1714927848786,-150.0,0.00030883,2]
[326451898,1714927848796,-40836.43058415,0.0003098,2]
[326451899,1714927848813,-48826.50019701,0.0003098,2]
[326451900,1714927862564,150.0,0.00012897,2]
[326451901,1714927863239,150.0,0.00012897,2]
[326451903,1714928038924,-872.70795906,0.00017259,2]
[326451904,1714928038947,-450.0,0.00018,3]
[326451906,1714928276177,622.39504904,0.00019177,2]
[326451907,1714928276852,155.0,0.00019177,2]
[326451908,1714928285427,1212.20342963,0.00017259,2]
[326451909,1714928290545,204.24588455,0.00019177,2]
[326451910,1714928384354,2806.15563678,0.00017259,2]
[326451911,1714928384376,4000.0,0.00017259,2]
[326451912,1714928384401,4000.0,0.00017259,2]
[326451913,1714928384430,4000.0,0.00017259,2]
[326451914,1714928384451,4000.0,0.00017259,2]
[326451915,1714928384472,653.14608126,0.00017259,2]
[326451916,1714928449871,208.17791052,0.00017259,2]
[326451917,1714928467962,155.0,0.00017259,2]
[326451918,1714928471749,-153.21,0.00019178,2]
[326451919,1714928471771,-500.0,0.0002,3]
[326451920,1714928471792,-499.99,0.00020546,2]
[326451921,1714928471813,-155.0,0.000209,2]
[326451922,1714928471834,-716.58965222,0.00021,2]
[326451923,1714928472114,-550.0,0.00022,3]
[326451924,1714928472137,-170.57,0.00023425,2]
[326451925,1714928472158,-600.0,0.00024,3]
[326451926,1714928472179,-650.0,0.00026,3]
[326451927,1714928472201,-4.64034778,0.00027031,2]
[326451928,1714928472902,-617.75470126,0.00027031,2]
[326451929,1714928472923,-155.0,0.00027031,2]
[326451930,1714928472944,-153.21,0.00027032,2]
[326451931,1714928472965,-749.98609132,0.0002748,2]
[326451932,1714928472986,-1212.20342963,0.00028819,2]
[326451933,1714928473008,-397.000051,0.00028824,2]
[326451934,1714928473030,-365.00424774,0.00029006,2]
[326451935,1714928473053,-349.84147905,0.00029233,2]
[326451936,1714928482341,-437.13852095,0.00029233,2]
[326451937,1714928482364,-250.0,0.00029334,2]
[326451938,1714928482386,-159.11864594,0.00029334,2]
[326451939,1714928482409,-210.06,0.00029361,2]
[326451940,1714928482433,-791.23307153,0.00029429,7]
[326451941,1714928482461,-161.14,0.0002951,15]
[326451942,1714928482483,-155.0,0.00029753,2]
[326451943,1714928482508,-155.0,0.00029754,2]
[326451944,1714928482531,-155.0,0.00029754,2]
[326451945,1714928482554,-240.9133084,0.00029755,2]
[326451946,1714928482576,-159.11864594,0.00029761,2]
[326451947,1714928482599,-159.11864594,0.00029953,2]
[326451948,1714928482623,-245.79245583,0.00030136,4]
[326451949,1714928482645,-721.36670547,0.00030137,2]
[326451950,1714928484764,-716.58965222,0.0002748,2]
[326451951,1714928484786,-155.0,0.0002748,2]
[326451952,1714928484810,-107.69329453,0.00030137,2]
[326451953,1714928484832,-414.53,0.00030137,2]
[326451954,1714928484855,-414.53,0.00030137,2]
[326451955,1714928484877,-414.53,0.00030137,2]
[326451956,1714928484900,-414.53,0.00030137,2]
[326451957,1714928484922,-154.317,0.00030384,2]
[326451958,1714928484944,-288.0,0.00030384,2]
[326451959,1714928484965,-150.0,0.00030426,2]
[326451960,1714928484987,-299.48,0.00030426,2]
[326451961,1714928485009,-150.0,0.00030426,2]
[326451962,1714928485031,-320.80005325,0.00030426,2]
[326451963,1714928492810,-155.0,0.000229,2]
[326451964,1714928492834,-98.95994675,0.00030426,2]
[326451965,1714928492858,-150.0,0.00030426,2]
[326451966,1714928492879,-419.76,0.00030426,2]
[326451967,1714928492900,-150.0,0.00030426,2]
[326451968,1714928492922,-419.76,0.00030426,2]
[326451969,1714928492944,-150.0,0.00030426,2]
[326451970,1714928492964,-163.09,0.00030426,2]
[326451971,1714928492985,-163.09,0.00030426,2]
[326451972,1714928493006,-150.0,0.00030426,2]
[326451973,1714928493029,-163.09,0.00030426,2]
[326451974,1714928493050,-150.0,0.00030426,2]
[326451975,1714928493071,-1038.89605254,0.00030533,4]
[326451976,1714928493093,-155.0,0.00030533,4]
[326451977,1714928493115,-236.99524406,0.00030533,4]
[326451978,1714928493137,-236.35875665,0.00030533,4]
[326451979,1714928500050,-140.87194608,0.00030533,4]
[326451980,1714928500074,-1325.97003301,0.00030533,4]
[326451981,1714928500097,-310.39552389,0.00030533,4]
[326451982,1714928500120,-787.96593841,0.00030533,4]
[326451983,1714928500143,-155.0,0.00030533,4]
[326451984,1714928500166,-265.77308436,0.00030533,4]
[326451985,1714928500189,-155.0,0.00030533,4]
[326451986,1714928500212,-155.0,0.00030533,4]
[326451987,1714928500234,-208.04498106,0.00030533,4]
[326451988,1714928500258,-495.97849319,0.00030533,4]
[326451989,1714928501222,781.63403816,0.00017259,2]
[326451990,1714928506263,-3218.36596184,0.00017259,2]
[326451991,1714928506288,-716.58965222,0.0002748,2]
[326451992,1714928506309,-65.04438594,0.00030533,4]
[326451993,1714928525493,-155.0,0.000229,2]
[326451994,1714928525518,-716.58965222,0.0002748,2]
[326451995,1714928525545,-275.20847274,0.00030533,4]
[326451996,1714928525567,-178.14155541,0.00030533,4]
[326451997,1714928525588,-1628.68023175,0.00030533,4]
[326451998,1714928525610,-1046.38008788,0.00030534,4]
[326451999,1714928526058,-1311.48039221,0.00030534,4]
[326452000,1714928526081,-338.16759667,0.00030534,4]
[326452001,1714928526104,-2350.35201112,0.00030535,2]
[326452098,1714928764233,-177.59203008,0.00017157,2]
[326452099,1714928764255,-161.73293461,0.00017157,2]
[326452100,1714928764285,-338.70484786,0.00017158,2]
[326452132,1714929031888,-622.39504904,0.0001945,2]
[326452134,1714929031897,-155.0,0.000209,2]
[326452136,1714929031906,-208.87614896,0.00025826,2]
[326452139,1714929031921,-16.92708294,0.00025826,2]
[326452140,1714929031930,-225.80323189,0.00026603,2]
[326452141,1714929031939,-225.80323189,0.0002738,2]
[326452142,1714929031948,-659.27399931,0.0002748,2]
[326452143,1714929031957,-150.5,0.0002897,15]
[326452144,1714929031966,-150.5,0.0002898,15]
[326452145,1714929031975,-150.5,0.0002899,15]
[326452146,1714929031984,-153.43583716,0.0002929,2]
[326452147,1714929031993,-153.43583716,0.00029339,2]
[326452148,1714929032002,-150.10647152,0.00029384,2]
[326452149,1714929032012,-600.0,0.00029583,2]
[326452150,1714929032022,-250.0,0.00029591,2]
[326452151,1714929032033,-153.43583716,0.00029598,2]
[326452152,1714929032042,-153.43583716,0.00029704,2]
[326452153,1714929032051,-181.09,0.00029829,2]
[326452154,1714929032061,-161.14,0.00029846,15]
[326452155,1714929032070,-166.66666666,0.00030075,7]
[326452156,1714929032079,-150.0,0.00030433,2]
[326452157,1714929032088,-288.0,0.00030438,2]
[326452158,1714929032098,-153.43583716,0.00030442,7]
[326452159,1714929032107,-167.13792902,0.00030498,7]
[326452160,1714929032116,-150.35340702,0.00030499,7]
[326452161,1714929032125,-890.90790075,0.00030533,4]
[326452162,1714929032134,-1778.31663513,0.00030533,4]
[326452163,1714929032143,-782.13638794,0.00030533,2]
[326452164,1714929032153,-156.07687513,0.00030533,4]
[326452165,1714929032161,-403.12142763,0.00030533,4]
[326452166,1714929032171,-177.5004176,0.00030533,4]
[326452167,1714929032180,-323.22102265,0.00030533,4]
[326452168,1714929032189,-1000.0,0.00030534,2]
[326452169,1714929032198,-155.0,0.00030534,4]
[326452170,1714929032207,-155.0,0.00030535,2]
[326452171,1714929032216,-873.12793,0.00030535,60]
[326452172,1714929032225,-18885.25847968,0.00030535,2]
[326452173,1714929032237,-9240.0,0.00030535,2]
[326452174,1714929032258,-284.1080006,0.00030535,2]
[326452190,1714929033167,-1566.8635505,0.00030535,2]
[326452191,1714929033312,-44848.776397,0.00030535,2]
[326452192,1714929033321,-259.06,0.000306,2]
[326452193,1714929033330,-779.64249,0.0003067,2]
[326452194,1714929033339,-150.0,0.00030709,2]
[326452195,1714929033349,-150.0,0.0003071,2]
[326452196,1714929033359,-150.0,0.00030714,2]
[326452197,1714929033368,-3499.0404575,0.00030718,2]
[326452198,1714929033377,-150.0,0.00030723,2]
[326452199,1714929033386,-150.0,0.00030723,2]
[326452200,1714929033395,-150.0,0.00030724,2]
[326452201,1714929033404,-150.0,0.00030728,2]
[326452202,1714929033413,-150.0,0.00030729,2]
[326452203,1714929033423,-150.0,0.0003073,2]
[326452204,1714929033432,-150.0,0.00030732,2]
[326452205,1714929033442,-150.0,0.00030735,2]
[326452206,1714929033451,-150.0,0.00030738,2]
[326452207,1714929033460,-150.0,0.00030739,2]
[326452208,1714929033469,-150.0,0.00030744,2]
[326452209,1714929033478,-150.0,0.00030753,2]
[326452210,1714929033488,-150.0,0.00030755,2]
[326452211,1714929033497,-470.4090219,0.00030756,2]
[326452212,1714929033506,-150.0,0.00030758,2]
[326452213,1714929033515,-150.0,0.00030759,2]
[326452214,1714929033525,-150.0,0.00030762,2]
[326452215,1714929033535,-150.0,0.00030764,2]
[326452216,1714929033544,-150.0,0.00030767,2]
[326452217,1714929033555,-150.0,0.00030768,2]
[326452218,1714929033566,-150.0,0.00030769,2]
[326452219,1714929033575,-150.0,0.0003077,2]
[326452220,1714929033585,-150.0,0.00030774,2]
[326452221,1714929033595,-150.0,0.00030775,2]
[326452222,1714929033604,-150.0,0.00030776,2]
[326452223,1714929033613,-150.0,0.00030778,2]
[326452224,1714929033622,-150.0,0.00030783,2]
[326452225,1714929033633,-150.0,0.00030787,2]
[326452226,1714929033643,-150.10647152,0.00030792,7]
[326452227,1714929033652,-150.0,0.00030793,2]
[326452228,1714929033663,-150.0,0.00030796,2]
[326452229,1714929033672,-150.0,0.00030801,2]
[326452230,1714929033684,-150.0,0.00030802,2]
[326452231,1714929033695,-150.0,0.00030802,2]
[326452232,1714929033706,-150.0,0.00030803,2]
[326452233,1714929033715,-150.0,0.00030803,2]
[326452234,1714929033725,-150.0,0.00030806,2]
[326452235,1714929033735,-150.0,0.00030806,2]
[326452236,1714929033745,-150.0,0.00030807,2]
[326452237,1714929033754,-150.0,0.00030808,2]
[326452238,1714929033763,-150.0,0.00030808,2]
[326452239,1714929033775,-150.0,0.00030809,2]
[326452240,1714929033784,-150.0,0.00030811,2]
[326452241,1714929033794,-150.0,0.00030811,2]
[326452242,1714929033804,-150.0,0.00030816,2]
[326452243,1714929033813,-150.0,0.0003082,2]
[326452244,1714929033823,-153.43583716,0.00030821,7]
[326452245,1714929033832,-150.0,0.00030824,2]
[326452246,1714929033842,-150.0,0.00030827,2]
[326452247,1714929033852,-150.0,0.00030829,2]
[326452248,1714929033861,-150.0,0.0003083,2]
[326452249,1714929033871,-150.0,0.0003083,2]
[326452250,1714929033879,-150.0,0.00030831,2]
[326452251,1714929033889,-150.0,0.00030832,2]
[326452252,1714929033898,-150.0,0.00030834,2]
[326452253,1714929033907,-150.0,0.00030838,2]
[326452254,1714929033917,-150.0,0.00030846,2]
[326452255,1714929033926,-150.0,0.00030846,2]
[326452256,1714929033935,-150.0,0.00030846,2]
[326452257,1714929033945,-150.0,0.00030852,2]
[326452258,1714929033955,-150.0,0.00030852,2]
[326452259,1714929033964,-150.0,0.00030862,2]
[326452260,1714929033973,-150.0,0.00030863,2]
[326452261,1714929033983,-150.0,0.00030867,2]
[326452262,1714929033993,-153.43583716,0.00030868,7]
[326452263,1714929034003,-150.0,0.00030871,2]
[326452264,1714929034012,-150.0,0.00030873,2]
[326452265,1714929034023,-150.0,0.00030874,2]
[326452266,1714929034033,-150.0,0.00030878,2]
[326452267,1714929034042,-150.0,0.00030878,2]
[326452268,1714929034052,-150.0,0.00030879,2]
[326452269,1714929034061,-2605.95440577,0.00030879,2]
[326452270,1714929034071,-523.0663,0.0003088,2]
[326452271,1714929034080,-4238.2775,0.0003088,2]
[326452272,1714929034090,-242.81608266,0.0003088,2]
[326452273,1714929034100,-168.62526848,0.0003088,2]
[326452274,1714929034109,-155.0,0.0003088,2]
[326452275,1714929034119,-151.32011847,0.0003088,30]
[326452276,1714929034129,-151.32011847,0.0003088,30]
[326452277,1714929034138,-151.32011847,0.0003088,30]
[326452278,1714929034147,-402.82279284,0.0003088,2]
[326452279,1714929034157,-1000.0,0.0003088,120]
[326452280,1714929034167,-242.48,0.0003088,2]
[326452281,1714929034177,-1560.32144644,0.00030882,2]
[326452282,1714929034187,-150.0,0.00030883,2]
[326452283,1714929034197,-150.0,0.00030885,2]
[326452284,1714929034206,-150.0,0.0003089,2]
[326452285,1714929034216,-150.0,0.00030893,2]
[326452286,1714929034225,-152.84913769,0.000309,2]
[326452287,1714929034235,-7532.27822245,0.000309,2]
[326452288,1714929034245,-179.34240057,0.000309,3]
[326452289,1714929034255,-310.3956409,0.000309,2]
[326452290,1714929034265,-150.0,0.00030903,2]
[326452291,1714929034277,-150.0,0.00030918,2]
[326452292,1714929034286,-150.0,0.0003092,2]
[326452293,1714929034297,-150.0,0.00030922,2]
[326452294,1714929034307,-150.0,0.00030927,2]
[326452295,1714929034317,-150.0,0.00030931,2]
[326452296,1714929034327,-150.0,0.00030931,2]
[326452297,1714929034336,-150.0,0.00030935,2]
[326452298,1714929034345,-150.0,0.0003094,2]
[326452299,1714929034355,-150.0,0.00030945,2]
[326452300,1714929034365,-150.35340702,0.00030948,7]
[326452301,1714929034374,-150.0,0.00030949,2]
[326452302,1714929034384,-150.0,0.0003095,2]
[326452303,1714929034394,-1274.0,0.0003095,15]
[326452304,1714929034403,-1044.0,0.0003095,15]
[326452305,1714929034413,-150.0,0.00030951,2]
[326452306,1714929034423,-150.0,0.00030953,2]
[326452307,1714929034432,-150.0,0.00030956,2]
[326452308,1714929034441,-150.0,0.00030957,2]
[326452309,1714929034452,-1274.0,0.0003096,15]
[326452310,1714929034461,-284.96,0.0003096,15]
[326452311,1714929034471,-1044.0,0.0003096,15]
[326452312,1714929034480,-150.0,0.00030961,2]
[326452313,1714929034490,-150.0,0.00030962,2]
[326452314,1714929034500,-150.0,0.00030962,2]
[326452315,1714929034510,-150.0,0.00030965,2]
[326452316,1714929034522,-150.0,0.00030967,2]
[326452317,1714929034532,-150.0,0.00030968,2]
[326452318,1714929034542,-1274.0,0.0003097,15]
[326452319,1714929034551,-150.5,0.0003097,15]
[326452320,1714929034561,-1044.0,0.0003097,15]
[326452321,1714929034570,-151.04,0.0003097,2]
[326452322,1714929034581,-151.04,0.0003097,2]
[326452323,1714929034590,-150.0,0.00030972,2]
[326452324,1714929034600,-150.0,0.00030977,2]
[326452325,1714929034612,-150.0,0.00030979,2]
[326452326,1714929034623,-150.0,0.00030979,2]
[326452327,1714929034637,-3121.2459812,0.00030979,2]
[326452328,1714929034647,-511.9276249,0.00030979,2]
[326452329,1714929034659,-1841.4844158,0.00030979,2]
[326452330,1714929034668,-13026.1991237,0.00030979,2]
[326452331,1714929034678,-1342.7167608,0.00030979,2]
[326452332,1714929034688,-12737.8692756,0.00030979,2]
[326452333,1714929034697,-5036.0671456,0.00030979,2]
[326452334,1714929034707,-320.90340346,0.00030979,2]
[326452335,1714929034716,-779019.22464888,0.0003098,2]
[326452336,1714929034731,-6566.03609594,0.0003098,2]
[326452337,1714929034742,-7289.9674728,0.0003098,2]
[326452338,1714929034753,-31740.49499823,0.0003098,2]
[326452339,1714929034763,-22714.8706778,0.0003098,2]
[326452344,1714929037914,-155.0,0.00019449,2]
[326452346,1714929037924,-150.0,0.00030713,2]
[326452348,1714929037933,-150.0,0.00030713,2]
[326452350,1714929037943,-150.0,0.00030716,2]
[326452352,1714929037952,-150.0,0.00030717,2]
[326452354,1714929037961,-150.0,0.00030722,2]
[326452356,1714929037970,-150.0,0.00030725,2]
[326452358,1714929037978,-150.0,0.00030728,2]
[326452359,1714929037987,-150.0,0.00030739,2]
[326452360,1714929038248,-150.0,0.00030744,2]
[326452361,1714929038258,-150.0,0.00030746,2]
[326452362,1714929038267,-150.0,0.00030752,2]
[326452363,1714929038278,-150.0,0.00030752,2]
[326452364,1714929038287,-150.0,0.00030753,2]
[326452365,1714929038297,-150.0,0.00030753,2]
[326452366,1714929038306,-150.0,0.00030757,2]
[326452367,1714929038316,-150.0,0.0003076,2]
[326452368,1714929038325,-150.0,0.00030762,2]
[326452369,1714929038334,-150.0,0.00030765,2]
[326452370,1714929038343,-150.0,0.00030766,2]
[326452371,1714929038353,-150.0,0.00030768,2]
[326452372,1714929038362,-150.0,0.00030772,2]
[326452373,1714929038371,-150.0,0.00030772,2]
[326452374,1714929038380,-150.0,0.00030774,2]
[326452375,1714929038389,-150.0,0.00030775,2]
[326452376,1714929038398,-150.0,0.00030777,2]
[326452377,1714929038407,-150.0,0.00030779,2]
[326452378,1714929038417,-150.0,0.00030789,2]
[326452379,1714929038427,-150.0,0.00030792,2]
[326452380,1714929038436,-150.0,0.00030797,2]
[326452381,1714929038445,-150.0,0.00030797,2]
[326452382,1714929038455,-150.0,0.00030799,2]
[326452383,1714929038464,-150.0,0.000308,2]
[326452384,1714929038473,-150.0,0.00030805,2]
[326452385,1714929038483,-150.0,0.00030811,2]
[326452386,1714929038492,-150.0,0.00030813,2]
[326452387,1714929038501,-150.0,0.00030816,2]
[326452388,1714929038510,-150.0,0.00030822,2]
[326452389,1714929038520,-150.0,0.00030823,2]
[326452390,1714929038531,-150.0,0.00030826,2]
[326452391,1714929038540,-150.0,0.00030826,2]
[326452392,1714929038549,-150.0,0.00030827,2]
[326452393,1714929038558,-150.0,0.00030831,2]
[326452394,1714929038567,-150.0,0.00030836,2]
[326452395,1714929038576,-150.0,0.00030843,2]
[326452396,1714929038585,-150.0,0.00030843,2]
[326452397,1714929038594,-150.0,0.00030847,2]
[326452398,1714929038604,-150.0,0.00030851,2]
[326452399,1714929038613,-150.0,0.00030851,2]
[326452400,1714929038622,-150.0,0.00030851,2]
[326452401,1714929038635,-150.0,0.00030853,2]
[326452402,1714929038647,-150.0,0.00030854,2]
[326452403,1714929038656,-150.0,0.00030854,2]
[326452404,1714929038665,-150.0,0.00030855,2]
[326452405,1714929038676,-150.0,0.00030856,2]
[326452406,1714929038685,-150.0,0.00030859,2]
[326452407,1714929038694,-150.0,0.00030862,2]
[326452408,1714929038703,-150.0,0.00030867,2]
[326452409,1714929038712,-150.0,0.00030867,2]
[326452410,1714929038721,-150.0,0.00030867,2]
[326452411,1714929038731,-150.0,0.00030869,2]
[326452412,1714929038740,-150.0,0.00030871,2]
[326452413,1714929038749,-150.0,0.00030874,2]
[326452414,1714929038758,-150.0,0.00030874,2]
[326452415,1714929038767,-150.0,0.00030875,2]
[326452416,1714929038779,-150.0,0.00030891,2]
[326452417,1714929038788,-150.0,0.00030894,2]
[326452418,1714929038798,-150.0,0.00030896,2]
[326452419,1714929038807,-150.0,0.00030897,2]
[326452420,1714929038816,-150.0,0.00030898,2]
[326452421,1714929038826,-150.0,0.000309,2]
[326452422,1714929038835,-150.0,0.00030903,2]
[326452423,1714929038844,-150.0,0.00030905,2]
[326452424,1714929038854,-150.0,0.00030906,2]
[326452425,1714929038863,-150.0,0.00030907,2]
[326452426,1714929038872,-150.0,0.00030908,2]
[326452428,1714929038881,-150.0,0.00030913,2]
[326452430,1714929038891,-150.0,0.00030916,2]